bitfinex-derivatives/quotes_SOLF0:USTF0_20240904
["timestamp","ask_amount","ask_price","bid_price","bid_amount"]
[1725409987834,0.88155809,128.86,128.82,3.8817]
[1725409988224,0.88155809,128.86,128.8,3.84340063]
[1725409988431,0.05845546,128.84,128.83,3.8816]
[1725409988823,0.05845546,128.84,128.82,0.0526461]
[1725409989025,0.05845546,128.84,128.82,3.9343461]
[1725409989641,0.05845546,128.84,128.82,0.0526461]
[1725409993736,3.93985546,128.84,128.82,0.0526461]
[1725409994834,0.05845546,128.84,128.82,0.0526461]
[1725409995229,3.8816,128.83,128.82,0.0526461]
[1725409995433,0.05845546,128.84,128.76,23.9]
[1725409995434,26.83215546,128.84,128.76,23.9]
[1725409995640,26.7737,128.84,128.76,23.9]
[1725409996037,3.882,128.82,128.78,3.883]
[1725409996437,0.05190562,128.81,128.79,0.05778691]
[1725409997039,4.01264793,128.81,128.79,0.05778691]
[1725409998134,3.8825,128.8,128.79,0.05778691]
[1725409998438,4.01264793,128.81,128.79,0.05778691]
[1725409998643,7.89494793,128.81,128.79,0.05778691]
[1725409999241,4.01264793,128.81,128.79,0.05778691]
[1725410000645,7.89494793,128.81,128.79,0.05778691]
[1725410001147,4.01264793,128.81,128.79,0.05778691]
[1725410001647,0.05190562,128.81,128.79,0.05778691]
[1725410002039,3.95222574,128.81,128.79,0.05778691]
[1725410002238,0.05190562,128.81,128.79,0.05778691]
[1725410002838,3.90525264,128.81,128.79,0.05778691]
[1725410003137,3.8825,128.8,128.79,0.05778691]
[1725410003538,3.8832,128.78,128.75,3.8838]
[1725410003743,23.9,128.79,128.72,23.9]
[1725410003940,25.3457,128.79,128.74,3.8841]
[1725410004141,3.8833,128.78,128.72,23.9]
[1725410004345,7.74052909,128.78,128.72,23.9]
[1725410004537,0.05372089,128.76,128.74,0.05514939]
[1725410006853,0.05372089,128.76,128.75,3.884]
[1725410013552,0.05372089,128.76,128.74,3.93934939]
[1725410013755,0.05372089,128.76,128.74,0.05514939]
[1725410016156,0.05372089,128.76,128.74,3.93934939]
[1725410016657,0.05372089,128.76,128.74,0.05514939]
[1725410016852,0.05372089,128.76,128.75,3.884]
[1725410019049,0.05372089,128.76,128.74,3.93934939]
[1725410022155,0.05372089,128.76,128.75,3.884]
[1725410022861,0.05372089,128.76,128.74,3.93934939]
[1725410023062,0.05372089,128.76,128.74,0.05514939]
[1725410023653,0.05372089,128.76,128.75,3.884]
[1725410025056,0.05372089,128.76,128.74,0.05514939]
[1725410025362,9.60372089,128.76,128.74,0.05514939]
[1725410025969,9.60372089,128.76,128.67,13.44708475]
[1725410026158,9.55,128.74,128.68,1.55385683]
[1725410026463,9.55,128.74,128.7,3.8854]
[1725410026850,0.04925344,128.73,128.71,3.94198293]
[1725410027852,0.04925344,128.73,128.71,0.05678293]
[1725410029070,3.93395344,128.73,128.71,0.05678293]
[1725410031372,0.04925344,128.73,128.71,0.05678293]
[1725410032970,3.93405344,128.73,128.71,0.05678293]
[1725410033171,5.40085344,128.73,128.71,0.05678293]
[1725410033362,2.96335344,128.73,128.71,0.05678293]
[1725410033562,4.40165344,128.73,128.71,0.05678293]
[1725410034059,27.7749,128.72,128.68,3.8859]
[1725410035073,23.89,128.72,128.69,3.93543229]
[1725410035276,23.94272732,128.72,128.69,3.93543229]
[1725410036577,23.94272732,128.72,128.69,0.04963229]
[1725410038077,27.82782732,128.72,128.69,0.04963229]
[1725410038573,27.82782732,128.72,128.69,3.93543229]
[1725410039366,27.82782732,128.72,128.69,0.04963229]
[1725410040378,23.94272732,128.72,128.69,3.93543229]
[1725410041175,27.82762732,128.72,128.69,3.93543229]
[1725410041685,27.82762732,128.72,128.69,0.04963229]
[1725410041874,3.8853,128.71,128.69,0.04963229]
[1725410042074,23.94272732,128.72,128.69,0.04963229]
[1725410042275,3.886,128.69,128.64,3.96940532]
[1725410042471,23.89,128.71,128.63,3.84507]
[1725410042875,27.776,128.69,128.65,3.8869]
[1725410043079,23.89,128.69,128.62,3.8913072]
[1725410043280,23.89,128.69,128.6,23.89]
[1725410043478,0.0513586,128.67,128.64,0.0558102]
[1725410043774,23.9413586,128.67,128.64,0.0558102]
[1725410044079,25.3505586,128.67,128.64,0.0558102]
[1725410044280,29.26112375,128.67,128.64,0.0558102]
[1725410045378,33.14772375,128.67,128.64,0.0558102]
[1725410045678,9.25772375,128.67,128.64,0.0558102]
[1725410045976,1.4605586,128.67,128.64,0.0558102]
[1725410046873,0.0513586,128.67,128.64,0.0558102]
[1725410047581,0.0513586,128.67,128.65,3.8869]
[1725410053070,0.0513586,128.67,128.65,9.55]
[1725410053280,0.0513586,128.67,128.66,9.55]
[1725410053474,0.0513586,128.67,128.65,9.55]
[1725410054277,0.0513586,128.67,128.66,3.8867]
[1725410055571,0.0513586,128.67,128.65,3.8868]
[1725410055970,0.0513586,128.67,128.64,0.0558102]
[1725410057081,0.0513586,128.67,128.66,3.8867]
[1725410058679,0.0513586,128.67,128.64,0.0558102]
[1725410059080,0.0513586,128.67,128.65,3.8869]
[1725410061182,0.0513586,128.67,128.64,0.0558102]
[1725410061883,1.5448586,128.67,128.64,0.0558102]
[1725410062084,9.28295879,128.67,128.64,0.0558102]
[1725410062685,23.86,128.66,128.64,0.0558102]
[1725410063386,27.747,128.66,128.64,0.0558102]
[1725410063901,1.5448586,128.67,128.64,0.0558102]
[1725410064092,0.0513586,128.67,128.64,0.0558102]
[1725410064386,0.0513586,128.67,128.64,3.9430102]
[1725410066188,27.81056725,128.67,128.64,0.0558102]
[1725410066891,3.8868,128.66,128.64,0.0558102]
[1725410067685,5.2787,128.66,128.64,0.0558102]
[1725410070891,23.86,128.65,128.64,0.0558102]
[1725410071593,27.747,128.65,128.64,0.0558102]
[1725410072692,29.211,128.65,128.64,0.0558102]
[1725410073589,3.8875,128.64,128.6,3.8884]
[1725410073786,23.86,128.63,128.6,3.8884]
[1725410074494,0.05012124,128.63,128.6,0.05320492]
[1725410074695,23.86,128.61,128.6,0.05320492]
[1725410075093,27.7483,128.61,128.6,0.05320492]
[1725410075397,27.7483,128.61,128.54,3.92422036]
[1725410075598,27.7483,128.61,128.57,3.8894]
[1725410076389,0.05823,128.6,128.58,0.0550879]
[1725410077292,3.94683,128.6,128.58,0.0550879]
[1725410077997,9.56,128.59,128.58,0.0550879]
[1725410079189,9.61823,128.6,128.58,0.0550879]
[1725410083997,9.56,128.59,128.58,0.0550879]
[1725410089101,0.05823,128.6,128.58,0.0550879]
[1725410089593,0.05823,128.6,128.58,3.9441879]
[1725410089801,0.05823,128.6,128.58,0.0550879]
[1725410090710,0.05823,128.6,128.58,3.9441879]
[1725410091795,0.05823,128.6,128.58,0.0550879]
[1725410092208,0.05823,128.6,128.58,3.9441879]
[1725410093007,0.05823,128.6,128.59,3.8889]
[1725410102712,9.61823,128.6,128.58,0.0550879]
[1725410103612,9.61823,128.6,128.58,3.9440879]
[1725410103817,3.8889,128.59,128.58,0.0550879]
[1725410104007,1.4727,128.59,128.51,1.9884]
[1725410104209,9.56,128.53,128.48,109.69222753]
[1725410104418,9.56,128.53,128.51,3.8912]
[1725410104612,9.56,128.53,128.49,1.55615568]
[1725410104810,3.86426772,128.57,128.49,9.56]
[1725410105121,3.86426772,128.57,128.52,3.8908]
[1725410105122,0.05105665,128.54,128.52,3.8908]
[1725410108522,0.05105665,128.54,128.51,3.8912]
[1725410110823,0.05105665,128.54,128.52,3.891]
[1725410111719,0.05105665,128.54,128.51,3.8911]
[1725410111914,9.61105665,128.54,128.51,3.8911]
[1725410112118,9.61105665,128.54,128.48,124.20391806]
[1725410112527,9.61105665,128.54,128.51,3.8912]
[1725410113826,0.05105665,128.54,128.51,9.56]
[1725410114027,0.05105665,128.54,128.52,9.56]
[1725410114726,0.05105665,128.54,128.53,3.8907]
[1725410115737,9.56,128.61,128.57,3.8893]
[1725410116730,0.05023279,128.6,128.58,0.05577408]
[1725410117939,1.4576,128.66,128.59,9.56]
[1725410118541,16.32390865,128.67,128.61,9.56]
[1725410118745,9.56,128.66,128.59,9.56]
[1725410119033,0.05108881,128.64,128.62,3.8879]
[1725410121539,0.05108881,128.64,128.63,3.8877]
[1725410122831,0.05108881,128.64,128.61,0.05662748]
[1725410123033,23.88,128.63,128.61,0.05662748]
[1725410124544,27.7677,128.63,128.61,0.05662748]
[1725410124742,23.88,128.62,128.53,23.88]
[1725410125037,27.7687,128.6,128.51,23.88]
[1725410125246,27.7687,128.6,128.55,3.8899]
[1725410125247,31.57183939,128.6,128.55,3.8899]
[1725410125435,23.88,128.58,128.5,2.0478]
[1725410125641,27.7694,128.58,128.5,2.0478]
[1725410125838,0.05077983,128.55,128.53,3.94003948]
[1725410126536,1.4784,128.6,128.53,3.94003948]
[1725410126537,3.81441428,128.62,128.54,23.88]
[1725410126737,23.88,128.64,128.54,23.88]
[1725410126941,23.88,128.62,128.57,3.8893]
[1725410127144,3.97537316,128.61,128.57,3.8893]
[1725410127446,1.357,128.65,128.58,0.05586202]
[1725410127447,23.9355439,128.6,128.58,0.05586202]
[1725410127647,1.357,128.59,128.58,0.05477092]
[1725410129248,23.88,128.68,128.58,23.93477092]
[1725410129443,23.88,128.68,128.59,3.84106041]
[1725410129444,1.4704,128.66,128.59,3.84106041]
[1725410129643,5.28151896,128.66,128.63,3.8876]
[1725410130246,5.3376841,128.66,128.63,3.93881843]
[1725410131949,29.2176841,128.66,128.63,3.93881843]
[1725410133253,29.2176841,128.66,128.64,3.8873]
[1725410135855,23.88,128.65,128.48,125.26082753]
[1725410136054,23.88,128.63,128.56,3.94201418]
[1725410136353,23.88,128.63,128.61,3.8881]
[1725410136954,23.93249266,128.63,128.61,3.94144015]
[1725410137147,23.93249266,128.63,128.6,3.8884]
[1725410137343,23.88,128.61,128.55,3.95911788]
[1725410137542,23.88,128.61,128.52,1.0819]
[1725410137543,2.963,128.6,128.52,1.0819]
[1725410138156,0.05054605,128.57,128.55,0.04992334]
[1725410139154,0.05054605,128.57,128.56,3.8895]
[1725410139347,0.05054605,128.57,128.55,0.04992334]
[1725410140054,23.93054605,128.57,128.55,0.04992334]
[1725410140254,23.88,128.56,128.46,3.96432586]
[1725410140550,23.88,128.56,128.5,3.8914]
[1725410140551,23.88,128.54,128.5,3.8914]
[1725410140945,23.88,128.54,128.45,23.88]
[1725410141150,23.88,128.54,128.5,3.8916]
[1725410141347,0.05566316,128.53,128.5,3.8916]
[1725410142468,0.05566316,128.53,128.48,3.98228498]
[1725410142653,0.05566316,128.53,128.49,1.55638053]
[1725410142848,0.05566316,128.53,128.49,5.45192498]
[1725410143062,0.05566316,128.53,128.51,3.891]
[1725410143859,0.05566316,128.53,128.52,3.891]
[1725410147264,1.4803,128.59,128.55,3.89]
[1725410147466,5.45511471,128.59,128.55,3.89]
[1725410148363,0.05828945,128.58,128.56,0.05306948]
[1725410149457,0.05828945,128.58,128.56,3.94266948]
[1725410149964,0.05828945,128.58,128.56,0.05306948]
[1725410150466,23.88,128.57,128.54,3.8903]
[1725410151055,0.05828945,128.58,128.54,3.8903]
[1725410151253,0.05828945,128.58,128.55,3.89]
[1725410151459,0.05505867,128.58,128.55,3.89]
[1725410152153,0.05505867,128.58,128.5,27.84539066]
[1725410152465,0.05520639,128.55,128.49,23.88]
[1725410152662,0.05520639,128.55,128.5,5.41677336]
[1725410152864,0.05520639,128.55,128.5,3.86062867]
[1725410154261,0.05520639,128.55,128.52,3.8907]
[1725410154668,0.05520639,128.55,128.5,27.74062867]
[1725410154869,0.05520639,128.55,128.53,3.8905]
[1725410155367,0.05520639,128.55,128.52,3.8908]
[1725410157273,3.94530639,128.55,128.51,3.8912]
[1725410157470,0.05520639,128.55,128.51,3.8912]
[1725410158170,0.05520639,128.55,128.52,3.8907]
[1725410158571,0.05520639,128.55,128.48,23.88]
[1725410159171,0.05520639,128.55,128.52,3.8907]
[1725410160166,0.05520639,128.55,128.53,3.8906]
[1725410160667,0.05520639,128.55,128.54,3.8904]
[1725410161068,0.05520639,128.55,128.5,23.88]
[1725410161574,0.05520639,128.55,128.53,3.8905]
[1725410162271,0.05520639,128.55,128.54,3.8904]
[1725410163774,0.05520639,128.55,128.53,3.8905]
[1725410164470,0.05520639,128.55,128.52,3.8908]
[1725410164975,0.05520639,128.55,128.51,3.8912]
[1725410165376,0.05520639,128.55,128.49,27.76309737]
[1725410166581,0.05520639,128.55,128.51,3.8911]
[1725410167278,3.94530639,128.55,128.51,3.8911]
[1725410167479,3.94530639,128.55,128.45,23.88]
[1725410167480,23.88,128.54,128.45,23.88]
[1725410167670,0.05336419,128.51,128.46,1.55637827]
[1725410167976,0.05336419,128.51,128.47,1.55637827]
[1725410168282,0.05336419,128.51,128.45,23.88]
[1725410168283,0.05336419,128.51,128.49,3.8916]
[1725410168581,0.05336419,128.51,128.45,23.88]
[1725410169178,0.05336419,128.51,128.49,3.8917]
[1725410169575,0.05336419,128.51,128.48,3.89178481]
[1725410169774,0.05336419,128.51,128.46,1.55650166]
[1725410169976,0.05336419,128.51,128.46,3.11300332]
[1725410170484,0.05336419,128.51,128.49,3.8917]
[1725410174181,0.05336419,128.51,128.5,3.8916]
[1725410174386,0.05336419,128.51,128.5,27.7716]
[1725410176888,3.8899,128.56,128.51,3.8911]
[1725410177490,3.8899,128.56,128.52,3.8909]
[1725410177684,3.8901,128.55,128.5,23.88]
[1725410177889,0.05676721,128.54,128.51,3.94624273]
[1725410178193,0.05676721,128.54,128.51,0.05524273]
[1725410178685,0.05676721,128.54,128.52,3.8908]
[1725410179791,0.05676721,128.54,128.53,3.8907]
[1725410180485,347.7723,128.69,128.57,3.8892]
[1725410180693,26.7692,128.64,128.57,3.8892]
[1725410180888,3.8882,128.62,128.57,3.8892]
[1725410181087,3.96966958,128.62,128.56,3.8896]
[1725410181286,26.7692,128.64,128.56,3.8896]
[1725410181486,0.05743351,128.61,128.59,0.05194758]
[1725410183589,23.93743351,128.61,128.59,0.05194758]
[1725410183790,23.93743351,128.61,128.59,3.94074758]
[1725410185590,23.93743351,128.61,128.6,3.8886]
[1725410185786,23.93743351,128.61,128.59,0.05194758]
[1725410186594,23.93743351,128.61,128.59,3.94064758]
[1725410191691,23.93743351,128.61,128.51,7.7826]
[1725410191692,23.88,128.6,128.51,7.7826]
[1725410191891,23.88,128.57,128.52,1.55580037]
[1725410192087,23.88,128.57,128.51,7.7826]
[1725410192293,23.88,128.57,128.52,1.55580666]
[1725410192594,23.88,128.57,128.5,24.9346]
[1725410192797,23.88,128.57,128.55,3.8899]
[1725410192994,23.93723093,128.57,128.55,3.94213038]
[1725410193694,0.05723093,128.57,128.56,3.8898]
[1725410203201,0.05723093,128.57,128.55,3.94213038]
[1725410205811,0.05723093,128.57,128.55,0.05223038]
[1725410206009,9.61723093,128.57,128.55,0.05223038]
[1725410206412,9.61723093,128.57,128.55,3.94213038]
[1725410208008,9.61723093,128.57,128.55,0.05223038]
[1725410209112,0.05723093,128.57,128.55,0.05223038]
[1725410209411,0.05723093,128.57,128.55,3.94233038]
[1725410211108,0.05723093,128.57,128.55,0.05223038]
[1725410212219,0.05723093,128.57,128.55,3.94213038]
[1725410212404,0.05723093,128.57,128.55,4.01071653]
[1725410212604,0.05723093,128.57,128.55,0.05223038]
[1725410212815,0.05723093,128.57,128.56,3.8898]
[1725410215307,9.56,128.61,128.56,3.8898]
[1725410215308,16.30139381,128.64,128.59,3.8888]
[1725410215813,20.18899381,128.64,128.59,3.8888]
[1725410216317,0.05214421,128.63,128.6,0.05152489]
[1725410218111,9.61214421,128.63,128.6,0.05152489]
[1725410218316,0.05214421,128.63,128.6,0.05152489]
[1725410218723,0.05214421,128.63,128.62,3.888]
[1725410221409,9.61214421,128.63,128.6,0.05152489]
[1725410221907,0.05214421,128.63,128.6,0.05152489]
[1725410222413,0.05214421,128.63,128.6,3.94002489]
[1725410223229,0.05214421,128.63,128.6,0.05152489]
[1725410224313,23.89,128.62,128.6,0.05152489]
[1725410225026,31.65800524,128.62,128.6,0.05152489]
[1725410225322,3.8883,128.61,128.54,107.58834794]
[1725410225524,23.89,128.59,128.54,107.58834794]
[1725410226025,23.89,128.59,128.54,111.43326756]
[1725410226228,23.89,128.59,128.56,3.8896]
[1725410226421,23.9399115,128.59,128.56,3.94413241]
[1725410226726,23.9399115,128.59,128.56,0.05453241]
[1725410227032,23.9399115,128.59,128.56,3.94423241]
[1725410236336,23.9399115,128.59,128.57,3.8894]
[1725410237628,23.9399115,128.59,128.56,3.94413241]
[1725410240840,23.9399115,128.59,128.57,3.8894]
[1725410241034,23.9399115,128.59,128.56,0.05453241]
[1725410241542,23.9399115,128.59,128.57,3.8894]
[1725410242745,23.9399115,128.59,128.56,3.94413241]
[1725410243140,23.9399115,128.59,128.56,0.05453241]
[1725410243938,9.56,128.57,128.56,0.05453241]
[1725410244548,9.56,128.57,128.56,1.61028402]
[1725410244939,9.56,128.57,128.56,0.05453241]
[1725410245245,9.56,128.57,128.49,0.9976]
[1725410245447,9.56,128.53,128.49,3.88491411]
[1725410245640,9.56,128.53,128.5,1.55636075]
[1725410245840,9.56,128.53,128.51,1.55636075]
[1725410246040,9.56,128.53,128.47,9.56]
[1725410246249,0.05972547,128.52,128.47,9.56]
[1725410246443,0.05972547,128.52,128.5,3.8913]
[1725410246638,0.05972547,128.52,128.51,1.55637578]
[1725410247347,9.61972547,128.52,128.49,3.8918]
[1725410247536,9.61972547,128.52,128.5,1.55647633]
[1725410247847,9.61972547,128.52,128.51,1.55648955]
[1725410248052,0.05972547,128.52,128.51,1.55648955]
[1725410248439,0.05972547,128.52,128.49,3.86317135]
[1725410248635,0.05972547,128.52,128.5,1.55649026]
[1725410248840,0.05972547,128.52,128.41,27.22613776]
[1725410249046,0.05924083,128.48,128.43,25.4464953]
[1725410249257,0.05924083,128.48,128.47,3.8925]
[1725410249550,0.05924083,128.48,128.47,9.25031546]
[1725410254853,0.05924083,128.48,128.47,7.69382016]
[1725410255358,0.05924083,128.48,128.43,23.89]
[1725410256149,0.05924083,128.48,128.45,23.89]
[1725410257454,0.05924083,128.48,128.47,3.8925]
[1725410257653,0.05924083,128.48,128.47,7.69636564]
[1725410268957,3.87990524,128.62,128.47,3.80386564]
[1725410269266,23.89,128.56,128.47,23.89]
[1725410269469,27.7804,128.54,128.48,3.8919]
[1725410269861,2.944,128.53,128.5,0.05860853]
[1725410270059,0.0539154,128.52,128.5,0.05860853]
[1725410273070,0.0539154,128.52,128.5,3.95020853]
[1725410273778,0.0539154,128.52,128.5,0.05860853]
[1725410275374,9.55,128.51,128.48,3.8922]
[1725410275881,9.55,128.51,128.47,3.8923]
[1725410276072,9.55,128.51,128.45,9.55]
[1725410276272,0.05895674,128.49,128.45,9.55]
[1725410276974,0.05895674,128.49,128.48,3.8922]
[1725410278980,0.05895674,128.49,128.47,3.8923]
[1725410279181,0.05895674,128.49,128.44,9.55]
[1725410279576,0.05895674,128.49,128.47,3.8923]
[1725410280579,0.05895674,128.49,128.47,13.4423]
[1725410281089,0.05895674,128.49,128.47,7.80625911]
[1725410282488,47.75,128.48,128.32,3.55464936]
[1725410282683,9.55,128.39,128.32,9.55]
[1725410282977,4.3168,128.47,128.32,9.55]
[1725410282978,0.05061785,128.37,128.32,9.55]
[1725410283170,0.05589567,128.36,128.3,42.82879799]
[1725410283371,0.05589567,128.36,128.32,3.8969]
[1725410284276,9.60589567,128.36,128.3,3.96181601]
[1725410284477,9.55,128.35,128.33,1.55764013]
[1725410284676,9.55,128.35,128.22,11.7001]
[1725410284986,9.55,128.35,128.31,3.8972]
[1725410285180,9.60376032,128.34,128.23,2.0771]
[1725410285386,0.05354471,128.3,128.24,1.4316846]
[1725410285578,0.05354471,128.3,128.26,9.55]
[1725410285774,0.05354471,128.3,128.29,3.898]
[1725410286292,0.05354471,128.3,128.26,3.85477516]
[1725410286590,0.05354471,128.3,128.28,3.8983]
[1725410286784,0.05354471,128.3,128.29,3.93737192]
[1725410287479,0.05354471,128.3,128.25,23.92]
[1725410287784,0.05354471,128.3,128.26,1.43185812]
[1725410287980,0.05354471,128.3,128.26,5.26871134]
[1725410288174,0.05354471,128.3,128.26,3.83685322]
[1725410288378,0.05354471,128.3,128.23,2.0771]
[1725410288581,0.05354471,128.3,128.24,2.99044798]
[1725410288892,0.05354471,128.3,128.26,3.8987]
[1725410289084,0.05354471,128.3,128.27,5.34524185]
[1725410289391,0.05354471,128.3,128.27,3.91335007]
[1725410290287,0.05354471,128.3,128.27,7.81185007]
[1725410290483,0.05354471,128.3,128.23,2.0771]
[1725410290680,0.05354471,128.3,128.24,1.43199133]
[1725410291078,23.92,128.29,128.24,1.43199133]
[1725410291280,23.92,128.25,128.19,3.96765193]
[1725410291487,0.05086325,128.23,128.2,1.43233497]
[1725410291690,0.05565944,128.23,128.19,3.82100077]
[1725410291880,0.05565944,128.23,128.21,3.9002]
[1725410292188,0.05565944,128.23,128.19,3.9207536]
[1725410292380,0.05281212,128.22,128.19,3.9007]
[1725410292576,0.05281212,128.22,128.2,3.92189429]
[1725410292777,0.05281212,128.22,128.2,5.48090013]
[1725410292978,0.05281212,128.22,128.2,3.92189429]
[1725410293782,0.05281212,128.22,128.14,26.0081]
[1725410293987,0.05817898,128.19,128.15,2.99326842]
[1725410294182,0.05817898,128.19,128.16,1.43325029]
[1725410294183,23.97817898,128.19,128.16,1.43325029]
[1725410294383,23.92,128.17,128.11,4.89395949]
[1725410294589,0.05044471,128.15,128.12,1.56054153]
[1725410294790,0.05044471,128.15,128.12,3.97647333]
[1725410295090,0.05044471,128.15,128.11,1.0898]
[1725410295387,0.05044471,128.15,128.1,3.55701174]
[1725410295584,0.05044471,128.15,128.1,7.41630099]
[1725410295786,0.05044471,128.15,128.13,3.9026]
[1725410296096,23.97044471,128.15,128.1,3.55701174]
[1725410296592,23.92,128.13,128.1,3.55701174]
[1725410296793,23.92,128.13,128.11,3.80780606]
[1725410297191,23.92,128.13,128.1,3.55701174]
[1725410297387,23.92,128.12,128.1,3.55701174]
[1725410297591,23.97179756,128.12,128.02,71.36109734]
[1725410297791,23.92,128.07,128.02,75.16383308]
[1725410297992,29.99,128.07,128.03,3.9056]
[1725410298799,0.04916093,128.08,128.02,75.16383308]
[1725410298990,0.04916093,128.08,128.03,1.43462983]
[1725410299395,0.04916093,128.08,128.02,75.16383308]
[1725410300283,0.04916093,128.08,128.05,3.9052]
[1725410300490,0.04916093,128.08,128.02,75.16383308]
[1725410300690,0.04916093,128.08,128.03,1.43459141]
[1725410300884,0.04916093,128.08,128.04,2.791]
[1725410302101,0.04916093,128.08,128.05,3.9053]
[1725410302290,0.04916093,128.08,128.04,2.791]
[1725410302798,0.04916093,128.08,128.04,6.6963]
[1725410302990,0.04916093,128.08,128.04,2.791]
[1725410303386,30.03916093,128.08,128.02,75.16383308]
[1725410303592,30.03916093,128.08,128.02,71.36109734]
[1725410303890,29.99,128.06,128.02,75.23949013]
[1725410304094,0.05318872,128.05,128.02,71.36109734]
[1725410305501,0.05318872,128.05,128.02,75.26719734]
[1725410306097,29.99,128.12,128.02,71.36109734]
[1725410306397,29.99,128.12,128.03,1.43468702]
[1725410306788,29.99,128.1,128.02,71.36109734]
[1725410306986,29.99,128.1,128.03,1.43478001]
[1725410307198,0.0590068,128.08,128.05,0.05516207]
[1725410307401,30.0490068,128.08,128.05,0.05516207]
[1725410307884,0.0590068,128.08,128.05,0.05516207]
[1725410309099,0.0590068,128.08,128.05,3.96036207]
[1725410309298,0.0590068,128.08,128.05,0.05516207]
[1725410309690,0.0590068,128.08,128.06,3.905]
[1725410312900,0.0590068,128.08,128.07,7.90478773]
[1725410313101,0.0590068,128.08,128.07,3.9047]
[1725410313306,31.4823,128.14,128.09,3.904]
[1725410313497,31.4823,128.14,128.05,29.99]
[1725410313700,29.99,128.16,128.06,1.43437618]
[1725410313895,29.99,128.16,128.1,3.9035]
[1725410314298,0.05615075,128.14,128.13,3.9028]
[1725410314494,29.99,128.18,128.13,3.9028]
[1725410314698,0.05441841,128.15,128.13,3.9028]
[1725410315197,0.05441841,128.15,128.12,7.92312126]
[1725410315393,0.05441841,128.15,128.12,4.02002126]
[1725410316309,0.05441841,128.15,128.12,7.92292126]
[1725410316499,0.05441841,128.15,128.12,4.02002126]
[1725410317715,0.05441841,128.15,128.13,3.9027]
[1725410317903,0.05441841,128.15,128.12,4.02002126]
[1725410319305,0.05441841,128.15,128.13,3.9027]
[1725410319810,0.05441841,128.15,128.14,3.9025]
[1725410320707,29.99,128.2,128.15,3.9021]
[1725410320898,29.99,128.21,128.13,1.4026]
[1725410321311,29.99,128.21,128.15,3.9019]
[1725410321512,29.99,128.21,128.13,5.26561205]
[1725410321813,0.05081395,128.18,128.16,0.05754312]
[1725410322018,0.05750155,128.18,128.16,0.05231003]
[1725410322511,0.05750155,128.18,128.17,3.9016]
[1725410322713,23.97,128.23,128.16,0.05231003]
[1725410322902,23.97,128.23,128.18,3.9011]
[1725410323608,0.05595848,128.22,128.19,0.0509976]
[1725410325118,0.05595848,128.22,128.19,3.9518976]
[1725410326015,0.05595848,128.22,128.2,3.9006]
[1725410326615,0.05595848,128.22,128.2,7.86544458]
[1725410326914,0.05595848,128.22,128.19,0.0509976]
[1725410327614,0.05595848,128.22,128.19,3.9519976]
[1725410329102,0.05595848,128.22,128.19,0.0509976]
[1725410329303,31.46,128.29,128.19,31.4441]
[1725410329616,31.46,128.29,128.22,3.9001]
[1725410329811,31.46,128.29,128.23,3.98074584]
[1725410330011,3.8983,128.28,128.22,3.9001]
[1725410330207,3.8983,128.28,128.23,3.8997]
[1725410330409,0.05977645,128.26,128.24,0.04950269]
[1725410331717,29.96,128.25,128.15,1.4644]
[1725410332017,29.96,128.23,128.19,3.9009]
[1725410332313,31.3316,128.25,128.19,3.9009]
[1725410332517,31.3316,128.25,128.15,1.4644]
[1725410332815,0.0537162,128.21,128.2,3.9005]
[1725410333016,0.05661626,128.22,128.2,7.73506782]
[1725410333219,0.05661626,128.22,128.21,3.9004]
[1725410333426,0.05661626,128.22,128.19,0.05397595]
[1725410335115,0.05661626,128.22,128.2,3.9079079]
[1725410336218,0.05661626,128.22,128.2,7.8085079]
[1725410337024,0.05661626,128.22,128.19,3.95477595]
[1725410338225,0.05661626,128.22,128.2,3.84482888]
[1725410338425,0.05661626,128.22,128.2,7.74542888]
[1725410339612,0.05661626,128.22,128.21,3.9004]
[1725410342517,0.05661626,128.22,128.2,7.74532888]
[1725410342919,0.05661626,128.22,128.2,3.84482888]
[1725410343322,0.05661626,128.22,128.19,0.05397595]
[1725410343720,30.01661626,128.22,128.19,0.05397595]
[1725410343921,3.9007,128.2,128.19,0.05397595]
[1725410344614,23.98,128.19,128.13,3.94946681]
[1725410344815,23.98,128.19,128.11,96.510591]
[1725410345121,23.98,128.19,128.14,3.9025]
[1725410345122,27.8812,128.19,128.14,3.9025]